Cogmind - Beta 13 X1 @@@ ROGUE MODE // 2023.08.28 @ 02:07:31 Player: VR-DUX Result: Destroyed by G-34 Mercenary with Small Laser Performance ------------- Evolutions (0) 0 Regions Visited (1) 200 Robots Destroyed (22) 110 Value Destroyed (408) 408 Prototype IDs (0) 0 Alien Tech Used (0) 0 Bonus (0) 0 TOTAL SCORE: 718 Bonus ------- None Cogmind --------- Core Integrity 0/250 Matter 290/300 Energy 51/100 System Corruption 0% Temperature Cool (77) Movement Treading (400) Ox3 Location -10/Materials Parts ------- > --- POWER (1) -------- (None) > --- PROPULSION (2) --- Light Treads Wheel > --- UTILITY (2) ------ Huge Storage Unit > --- WEAPON (2) ------- (None) > --- INVENTORY (25) --- Light Treads Light Treads Compact Wheel Flight Unit Small Storage Unit Medium Storage Unit Large Storage Unit Large Storage Unit Small Laser Assault Rifle Light Assault Rifle Peak State ------------ > --- POWER ------------ Ion Engine > --- PROPULSION ------- Light Treads Aluminum Leg > --- UTILITY ---------- Huge Storage Unit Seismic Detector > --- WEAPON ----------- EM Pulse Gun Light Assault Rifle > --- INVENTORY -------- Light Treads Light Treads Wheel Flight Unit Small Storage Unit Medium Storage Unit Large Storage Unit Large Storage Unit Small Laser Assault Rifle [Rating: 8] Favorites ----------- Power Ion Engine Engine Ion Engine Propulsion Light Treads Treads Light Treads Leg Aluminum Leg Wheel Wheel Utility Seismic Detector Device Seismic Detector Storage Large Storage Unit Weapon Light Assault Rifle Energy Gun EM Pulse Gun Ballistic Gun Light Assault Rifle Special Weapon Mining Laser Build | -11 -10 ------- Run | Jun Mat Slots Evolved . | . . Power . | . . Propulsion . | . . Utility . | . . Weapon . | . . Parts Attached 19 | . 19 Power 2 | . 2 Engine 2 | . 2 Core . | . . Reactor . | . . Propulsion 9 | . 9 Treads 5 | . 5 Leg . | . . Wheel 4 | . 4 Hover . | . . Flight . | . . Utility 5 | . 5 Device 2 | . 2 Storage 3 | . 3 Processor . | . . Hackware . | . . Protection . | . . Artifact . | . . Weapon 3 | . 3 Energy Gun 1 | . 1 Energy Cannon . | . . Ballistic Gun 1 | . 1 Ballistic Cannon . | . . Launcher . | . . Special Weapon 1 | . 1 Impact Weapon . | . . Slashing Weapon . | . . Piercing Weapon . | . . Special Melee Weapon . | . . Unidentified Prototypes . | . . Parts Lost 4 | . 4 Power 1 | . 1 Propulsion . | . . Utility 1 | . 1 Weapon 2 | . 2 Highest Loss Streak 3 | . 3 To Critical Strikes . | . . Average Slot Usage (%) 89 | . 89 Engine 11 | . 11 Treads 9 | . 9 Leg 7 | . 7 Wheel 9 | . 9 Device 10 | . 10 Storage 14 | . 14 Energy Gun 13 | . 13 Ballistic Gun 10 | . 10 Naked Turns . | . . Heaviest Build 90 | 10 90 Greatest Support 40 | 20 40 Greatest Overweight (x) 29 | . 29 Average Overweight (x) 3 | . 3 Largest Inventory Capacity 25 | . 25 Average Capacity 19 | . 19 Most Carried 13 | . 13 Average Carried 8 | . 8 Final Capacity 25 | 8 25 Final Carried 11 | 6 11 Class Distribution -------------------- 100% | Mutant Dominant Class ---------------- Mutant | -10/Materials Resources | -11 -10 ----------- Run | Jun Mat Matter Collected 447 | 200 247 Remotely . | . . Salvage Created 784 | . 784 Parts 49 | . 49 Haulers Intercepted 1 | . 1 Recyclers Shooed 1 | . 1 Parts Field Recycled . | . . Retrieved Matter . | . . Parts Self-Destructed . | . . Prevented . | . . Kills | -11 -10 ------- Run | Jun Mat Combat Hostiles Destroyed 11 | . 11 Guns 10 | . 10 AOE 1 | . 1 Classes Destroyed 8 | . 8 Worker 2 | . 2 Builder 3 | . 3 Tunneler 1 | . 1 Hauler 1 | . 1 Recycler 2 | . 2 Watcher 2 | . 2 Swarmer 3 | . 3 Grunt 8 | . 8 Best Kill Streak 3 | . 3 Combat Bots Only 3 | . 3 Max Kills in Single Turn 2 | . 2 Gunslinging . | . . Exploded 1 | . 1 Melee . | . . Uniques/NPCs Destroyed . | . . Combat | -11 -10 -------- Run | Jun Mat Damage Taken 843 | . 843 Core 250 | . 250 Absorbed by Shields . | . . Regen/Repaired (Parts) 114 | . 114 Core Remaining (%) 100 | 100 . Volleys Fired 92 | . 92 Largest 2 | . 2 Hottest 100 | . 100 Shots Fired 140 | . 140 Gun 138 | . 138 Cannon . | . . Launcher . | . . Special 2 | . 2 Kinetic 53 | . 53 Thermal 42 | . 42 Explosive . | . . Electromagnetic 45 | . 45 Robot Hit Streak 10 | . 10 Robot Miss Streak 2 | . 2 Penetration Max . | . . Secondary Targets 1 | . 1 Max Gunslinging Chain 1 | . 1 Shots Hit Robots 91 | . 91 Core Hits 35 | . 35 Critical Kills . | . . Critical Parts Destroyed . | . . Critical Strikes . | . . Melee Attacks . | . . Impact . | . . Slashing . | . . Piercing . | . . Sneak Attacks . | . . Combat Hostiles . | . . Follow-up Attacks . | . . Damage Inflicted 1231 | . 1231 Guns 1042 | . 1042 Cannons . | . . Explosions 163 | . 163 Melee . | . . Ramming . | . . Kinetic 278 | . 278 Thermal 460 | . 460 Explosive . | . . Electromagnetic 493 | . 493 Impact . | . . Slashing . | . . Piercing . | . . Highest Corruption . | . . Average Corruption . | . . Corruption Purged . | . . Corruption Blocked . | . . Overload Shots . | . . Overflow Damage . | . . Projectiles . | . . Explosions . | . . Melee . | . . Knockbacks . | . . Impact . | . . Kinetic . | . . Secondary . | . . Self-Inflicted Damage 68 | . 68 Shots 2 | . 2 Rammed . | . . Targets Rammed . | . . Kicked . | . . Crushed . | . . Highest Temperature 218 | . 218 Average Temperature 61 | . 61 Received Heat Transfer 441 | . 441 Effects 1 | . 1 Interference 1 | . 1 Siege Activations . | . . Robots Corrupted . | . . Combat Hostiles . | . . Parts Fried 1 | . 1 Impact Corruptions . | . . Robots Melted . | . . Combat Hostiles . | . . Parts Melted . | . . Heat Transferred 750 | . 750 Parts Sabotaged . | . . Parts Stolen . | . . Parts Stripped . | . . Power Chain Reactions 2 | . 2 Missiles Intercepted . | . . Alert | -11 -10 ------- Run | Jun Mat Peak Influence 202 | . 202 Initial . | . . Average 63 | . 63 Maximum Alert Level 1 | . 1 Low Security (%) 91 | . 91 Level 1 8 | . 8 Level 2 . | . . Level 3 . | . . Level 4 . | . . Level 5 . | . . High Security . | . . Max Security . | . . Squads Dispatched 3 | . 3 Investigation 1 | . 1 Extermination . | . . Reinforcement 2 | . 2 Assault . | . . Garrison . | . . Intercept . | . . Searches Triggered . | . . Construction Impeded . | . . Haulers Reinforced . | . . Active Scanning Responses . | . . Cargo Convoy Interrupts . | . . Stealth | -11 -10 --------- Run | Jun Mat Distress Signals . | . . Communications Jammed . | . . Distress Signals . | . . Times Spotted 17 | . 17 Peak Tracking Total 4 | . 4 Tactical Retreats . | . . Traps | -11 -10 ------- Run | Jun Mat Traps Triggered 1 | . 1 Indirectly . | . . Trap Hack Attempts . | . . Triggered . | . . Disarmed . | . . Reprogrammed . | . . Reused . | . . Traps Extracted . | . . Installed . | . . Triggered . | . . Machines | -11 -10 ---------- Run | Jun Mat Machines Disabled 1 | . 1 Max in Single Turn 1 | . 1 Machines Repaired . | . . Machines Sabotaged . | . . Overloaded Fab Kills . | . . Hacking | -11 -10 --------- Run | Jun Mat Machines Accessed 5 | . 5 Terminals 3 | . 3 Fabricators . | . . Repair Stations 1 | . 1 Recycling Units 1 | . 1 Scanalyzers . | . . Garrison Access . | . . Total Hacks 23 | . 23 Successful 9 | . 9 Failed 14 | . 14 Catastrophic 3 | . 3 Database Lockouts . | . . Manual 15 | . 15 Terminals 15 | . 15 Fabricators . | . . Repair Stations 6 | . 6 Recycling Units 2 | . 2 Scanalyzers . | . . Garrison Access . | . . Terminal Hacks 5 | . 5 Robot Analysis 4 | . 4 Recall Reinforcements 1 | . 1 Fabricator Hacks . | . . Repair Station Hacks 4 | . 4 Scan Component 2 | . 2 Repair 2 | . 2 Recycling Unit Hacks . | . . Scanalyzer . | . . Garrison Access Hacks . | . . Unauthorized Hacks . | . . Terminals . | . . Fabricators . | . . Repair Stations . | . . Recycling Units . | . . Scanalyzers . | . . Garrison Access . | . . Data Cores Recovered . | . . Used . | . . Hacking Detections 5 | . 5 Full Trace Events 1 | . 1 Feedback Events . | . . Feedback Blocked . | . . Robot Schematics Acquired . | . . Robots Built . | . . Authchips . | . . Time . | . . Total Robot Build Rating . | . . Part Schematics Acquired . | . . Parts Built . | . . Authchips . | . . Time . | . . Total Part Build Rating . | . . Parts Repaired 2 | . 2 Time 52 | . 52 Parts Recycled . | . . Recycled Matter . | . . Retrieved Matter . | . . Retrieved Components . | . . Parts Scanalyzed . | . . Part Schematics Acquired . | . . Parts Damaged . | . . Bothacking | -11 -10 ------------ Run | Jun Mat Used RIF Installer . | . . Robots Hacked . | . . Non-combat . | . . Combat . | . . Robot Hacks Applied . | . . Relay Couplers Released . | . . Fabnet Peak Effective % . | . . Robots Rewired . | . . Allies Hacked . | . . Hacks Repelled . | . . Allies | -11 -10 -------- Run | Jun Mat Total Allies . | . . Largest Group . | . . Highest-Rated Group . | . . Highest-Rated Ally . | . . Total Orders . | . . Ally Attacks . | . . Total Damage . | . . Kills . | . . Allies Corrupted . | . . Allies Melted . | . . Intel | -11 -10 ------- Run | Jun Mat Robot Analysis Total 4 | . 4 Derelict Logs Recovered . | . . Drone Launches . | . . Drone Recoveries . | . . Exploration | -11 -10 ------------- Run | Jun Mat Turns Passed 1290 | . 1290 Spaces Moved 477 | 1 476 Core 1 | . 1 Treads 191 | . 191 Legs 19 | 1 18 Wheels 266 | . 266 Hover . | . . Flight . | . . Fastest Speed 80 | 120 80 Average Speed 198 | 120 198 Slowest Speed 1500 | 120 1500 Overloaded Moves . | . . Propulsion Burnouts . | . . Robots Hopped . | . . Cave-ins Triggered . | . . Exploration Rate (%) 39 | 2 76 Regions Visited 1 Branch Regions . Pre-discovered Areas . | . . Known Exits Taken . | . . Unknown Exits Taken 1 | 1 . Scrap Searched . | . . Spaces Dug 1 | . 1 Terrain Destroyed 7 | . 7 Melee . | . . Projectile 1 | . 1 AOE 6 | . 6 Terrain Rammed . | . . Walls Destroyed . | . . Machines Disabled . | . . Actions | -11 -10 --------- Run | Jun Mat Total 685 | . 685 Wait 74 | . 74 Move 476 | . 476 Hop . | . . Pick Up 13 | . 13 Fast Attach 3 | . 3 Attach 7 | . 7 Detach 2 | . 2 Swap 9 | . 9 Drop 9 | . 9 Fire 92 | . 92 Melee . | . . Ram . | . . Kick . | . . Crush . | . . Escape Stasis . | . . Rewire . | . . Trap . | . . Miscellaneous . | . . Route ------- -11/Junkyard -10/Materials (discovered 4 exits: [*Mat x2] / [*Min x2]) History --------- Turn | Location | Event 1 | -11/Junkyard | Discovered new exit (range 0) 1 | -11/Junkyard | Entered Materials 275 | -10/Materials | Core integrity fell below 50% 311 | -10/Materials | Build established: Mutant 467 | -10/Materials | Discovered new exit (range 14) 717 | -10/Materials | Discovered new exit (range 7) 759 | -10/Materials | Repaired Lgt. Treads 786 | -10/Materials | Repaired Lgt. Assault Rifle 942 | -10/Materials | Discovered new exit (range 9) 1203 | -10/Materials | Discovered new exit (range 7) 1287 | -10/Materials | Core integrity fell below 20% 1291 | -10/Materials | Destroyed by G-34 Mercenary with Small Laser Last Messages --------------- 01148_ Dropped Aluminum Leg. 01152_ K-01 Serf destroyed. 01153_ K-01 Serf collects debris. 01156_ Destroyed Hover Unit. 01157_ K-01 Serf collects debris. 01158_ Destroyed Lgt. Ion Engine. 01160_ K-01 Serf collects debris. 01160_ Signal Interpreter fried. 01160_ W-16 Scout destroyed. 01164_ K-01 Serf collects debris. 01177_ W-16 Scout destroyed. 01178_ K-01 Serf collects debris. 01191_ K-01 Serf cleans the Terminal. 01203_ EXIT=FOUND 01269_ Critical hit (Burn: +37). 01279_ Structural Scanner destroyed. 01281_ Ion Engine destroyed. 01286_ Chain reaction triggered in Lgt. Nuclear Core. 01286_ G-47 Trooper destroyed. 01289_ EM Pulse Gun destroyed. Map ----- +----------------------------------------------------+ | ??????????????????????????????# | | ?????????????????????????????## | | ???????#######???????????????## | | ??????#########??????########## | | ?????####"""####?????########## | | ?????###"|||"###?????## ! # | | ?????##"" ""##?????## |%= | | ?????## ##?????##!=! # | | ?????## < ##?????########## | | ?????## ##?????########## | | ?????## ##????????????## | | ######## #############??## | | ######### ##############??## | | # # # ##?### | | # """ + + """ """ ###### | | # """ # # """"""""" #####"# | | # """ # # """"" " + ## | | # """ # # #### ## | | # !!# # #### ## | | #! ! !!# # #### ## | | ######### ########+#######+## | | # ## ######## ###= % | | # # ##### #= | | # ; !%= * #%%! | | # %;= %* +%= """ | | # ^ @;g *%! = #!= """ | | # # ##### # """ | | # # ########## ## | | # # ######?### ## | | # # ##??????## ######### | | # # ##??????"" ######### | | # # # ???? #"T # + | | ###+#### # ???? #"" # """ ## | | ######## # ???? ### # ??????? | | ?##### # ???? ### + ??????? | | ??????? # ??????## # ??????? | | ??????? ????????## + ??????? | | ??????? ????????###+###??????? | | ??????? ???????? ??????? | | ??????? ?????????????????????? | | ??????? ?????????????????????? | | ??????? ?????????????????????? | | ??????????????????????????????? | | ??????????????????????????????? | | ??????????????????????????????? | | ??????????????????????????????? | | ??????????????????????????????? | | ??????????????????????????????? | | ??????????????????????????????? | | ??????????????????????????????? | +----------------------------------------------------+ Best States ------------- Heat Dissipation 25 Energy Generation 10 Energy Capacity 250 Matter Stores 300 Matter Capacity 300 Sight Range 16 Terrain Scan Density 10 Evasion (%) 55 Recoil Reduction 1 Item Schematics ----------------- None Robot Schematics ------------------ None Fabricated ------------ Nothing Alien Tech Used ----------------- None Achievements -------------- None Challenges ------------ None Game ------ Seed NeutronWarpDoomcannon Manual? 0 Play Time 00:13:26 Cumulative 79.3 hours Start 2023.08.28 @ 01:56:24 End 2023.08.28 @ 02:07:31 Sessions 1 Manual Loads 0 Difficulty Rogue Special Mode None Game No. 75 Rogue 75 Adventurer 0 Explorer 0 Win Type - Total 1 Types 1/0/0/0/0/0/0/0/0 Lore% 42 Gallery% 35 Achievement% 37 Wizard Run 0 Options --------- ASCII 0 Keyboard 0 Movement Mouse Keybinds 0 Fullscreen 1 Font 16/SmallcapsGlow Map View 84x54 Tactical HUD 1 Map Filters NONE Filters NONE Steam 1 RUN: d55b7675-36ff-42ac-b8f6-68cbe248c3e3